bitfinex-derivatives/quotes_BTCF0:USTF0_20250322
["timestamp","ask_amount","ask_price","bid_price","bid_amount"]
[1742632560269,0.30223162,84205.0,84204.0,0.94424919]
[1742632572072,0.51570433,84205.0,84204.0,0.94424919]
[1742632575376,0.30223162,84205.0,84204.0,0.94424919]
[1742632580272,0.12494317,84205.0,84204.0,0.94424919]
[1742632580775,0.1187768,84224.0,84217.0,0.1187859]
[1742632580977,0.2486492,84218.0,84217.0,0.5040259]
[1742632581176,0.2486492,84218.0,84217.0,0.51899079]
[1742632581377,0.2486492,84218.0,84217.0,2.03097258]
[1742632581579,0.2478492,84218.0,84217.0,0.59447258]
[1742632581772,0.2485692,84218.0,84217.0,0.59447258]
[1742632581981,0.2515692,84218.0,84217.0,0.59447258]
[1742632582479,0.2508492,84218.0,84217.0,0.59447258]
[1742632582980,0.2516092,84218.0,84217.0,0.59447258]
[1742632583675,0.2508492,84218.0,84217.0,0.59447258]
[1742632584477,0.2515692,84218.0,84217.0,0.59447258]
[1742632585380,0.00372,84218.0,84217.0,0.59447258]
[1742632585581,0.003,84218.0,84217.0,0.59447258]
[1742632587092,0.00372,84218.0,84217.0,0.59447258]
[1742632587394,0.003,84218.0,84217.0,0.59447258]
[1742632588983,0.06422,84218.0,84217.0,0.59447258]
[1742632589982,0.0635,84218.0,84217.0,0.59447258]
[1742632590894,0.0635,84218.0,84217.0,0.95527258]
[1742632593696,0.0334,84218.0,84217.0,0.95527258]
[1742632593886,0.003,84218.0,84217.0,0.95527258]
[1742632600693,0.0671,84218.0,84217.0,0.95527258]
[1742632602200,0.06782,84218.0,84217.0,0.95527258]
[1742632602395,0.06782,84218.0,84217.0,2.09447258]
[1742632602597,0.0671,84218.0,84217.0,2.45527258]
[1742632603503,0.0671,84218.0,84217.0,2.45475258]
[1742632603799,0.20918468,84218.0,84217.0,2.45475258]
[1742632604493,0.20918468,84218.0,84217.0,2.09395258]
[1742632604692,0.20918468,84218.0,84217.0,2.45475258]
[1742632605301,0.20918468,84218.0,84217.0,2.09395258]
[1742632605600,0.20918468,84218.0,84217.0,2.45475258]
[1742632607105,0.0671,84218.0,84217.0,2.45475258]
[1742632607502,0.0671,84218.0,84217.0,0.95475258]
[1742632609800,0.0671,84218.0,84217.0,0.59395258]
[1742632610002,0.0671,84218.0,84217.0,0.95475258]
[1742632611700,0.0671,84218.0,84217.0,0.59395258]
[1742632611900,0.0671,84218.0,84217.0,0.95475258]
[1742632616507,0.0671,84218.0,84217.0,2.45475258]
[1742632618498,0.0671,84218.0,84217.0,2.09395258]
[1742632620013,0.18543563,84218.0,84217.0,2.09395258]
[1742632627714,0.24512178,84218.0,84217.0,2.09395258]
[1742632634817,0.0671,84218.0,84217.0,2.09395258]
[1742632638526,0.0339,84218.0,84217.0,2.09395258]
[1742632641918,0.003,84218.0,84217.0,2.09395258]
[1742632643625,0.003,84218.0,84217.0,2.10936232]
[1742632643824,0.00017817,84226.0,84224.0,0.1187761]
[1742632643825,0.0309,84225.0,84224.0,0.1187761]
[1742632644030,0.03162,84225.0,84224.0,0.8636561]
[1742632644526,0.03162,84225.0,84224.0,2.44322099]
[1742632644727,0.0309,84225.0,84224.0,2.44322099]
[1742632644926,0.0309,84225.0,84224.0,0.94322099]
[1742632645124,0.0317,84225.0,84224.0,0.94322099]
[1742632646222,0.0645,84225.0,84224.0,0.94322099]
[1742632647020,0.0952,84225.0,84224.0,0.94322099]
[1742632647427,0.09592,84225.0,84224.0,0.94322099]
[1742632647928,0.2146947,84225.0,84224.0,0.94322099]
[1742632652220,0.09592,84225.0,84224.0,0.94322099]
[1742632652528,0.2146947,84225.0,84224.0,0.94322099]
[1742632653226,0.09592,84225.0,84224.0,0.94322099]
[1742632653427,0.0952,84225.0,84224.0,0.94322099]
[1742632653638,0.2139747,84225.0,84224.0,0.94322099]
[1742632653934,0.09592,84225.0,84224.0,0.94322099]
[1742632654331,0.0952,84225.0,84224.0,0.94322099]
[1742632655037,0.2147747,84225.0,84224.0,0.94322099]
[1742632655835,0.096,84225.0,84224.0,0.94322099]
[1742632657139,0.27388646,84225.0,84224.0,0.9282561]
[1742632658439,0.26398646,84225.0,84224.0,0.9282561]
[1742632659140,0.26398646,84225.0,84224.0,0.94355485]
[1742632659842,0.26398646,84225.0,84224.0,0.58275485]
[1742632660035,0.26398646,84225.0,84224.0,0.94355485]
[1742632660250,0.38276116,84225.0,84224.0,0.94355485]
[1742632660437,0.26398646,84225.0,84224.0,0.94355485]
[1742632661940,0.23248646,84225.0,84224.0,0.94355485]
[1742632664038,0.16858,84225.0,84224.0,0.94355485]
[1742632667647,0.0546,84225.0,84224.0,0.94355485]
[1742632667843,0.0008,84225.0,84224.0,0.94355485]
[1742632668839,0.0008,84225.0,84224.0,0.96856956]
[1742632670044,0.0662,84225.0,84224.0,0.94355485]
[1742632670455,0.11478,84225.0,84224.0,0.94355485]
[1742632671348,0.2335547,84225.0,84224.0,0.94355485]
[1742632671539,0.14788,84225.0,84224.0,0.94355485]
[1742632672350,0.11478,84225.0,84224.0,0.94355485]
[1742632674146,0.1787649,84225.0,84224.0,0.94355485]
[1742632674640,0.2097649,84225.0,84224.0,0.94355485]
[1742632675542,0.1787649,84225.0,84224.0,0.94355485]
[1742632678048,0.0008,84225.0,84224.0,0.94355485]
[1742632681050,0.0008,84225.0,84224.0,0.58275485]
[1742632681258,0.0008,84225.0,84224.0,0.94355485]
[1742632681751,0.03067817,84226.0,84225.0,0.1187747]
[1742632681951,0.03143817,84226.0,84225.0,0.13471345]
[1742632682151,0.06433817,84226.0,84225.0,0.23101345]
[1742632684052,0.17459319,84226.0,84225.0,0.23101345]
[1742632684265,0.14093319,84226.0,84225.0,0.23101345]
[1742632684463,0.14169319,84226.0,84225.0,0.23101345]
[1742632685359,0.17409319,84226.0,84225.0,0.23101345]
[1742632687664,0.06383817,84226.0,84225.0,0.23101345]
[1742632691258,0.06383817,84226.0,84225.0,0.34393345]
[1742632694959,0.29307737,84226.0,84225.0,0.34393345]
[1742632695160,0.29303737,84226.0,84225.0,0.34393345]
[1742632695570,0.17426407,84226.0,84225.0,0.34393345]
[1742632696066,0.29303737,84226.0,84225.0,0.11223875]
[1742632696369,0.41176625,84226.0,84225.0,0.31199345]
[1742632699372,0.41176625,84226.0,84225.0,0.2966947]
[1742632700368,0.54002234,84226.0,84225.0,0.2966947]
[1742632702279,0.54002234,84226.0,84225.0,0.1838147]
[1742632702574,0.54002234,84226.0,84225.0,0.2166147]
[1742632704164,0.30130035,84226.0,84225.0,0.2166147]
[1742632706981,0.30130035,84226.0,84225.0,0.23170671]
[1742632711276,0.79173712,84226.0,84225.0,0.23170671]
[1742632711672,0.67296382,84226.0,84225.0,0.23170671]
[1742632712073,0.79173712,84226.0,84225.0,0.23170671]
[1742632714387,0.54388792,84226.0,84225.0,0.23170671]
[1742632718288,0.51479098,84226.0,84225.0,0.23170671]
[1742632721700,0.51479098,84226.0,84225.0,0.2166147]
[1742632721701,0.30130035,84226.0,84225.0,0.2166147]
[1742632723103,0.18252705,84226.0,84225.0,0.2166147]
[1742632723306,0.30130035,84226.0,84225.0,0.2166147]
[1742632728910,0.30130035,84226.0,84225.0,0.23171901]
[1742632732616,0.41352966,84226.0,84225.0,0.23171901]
[1742632732917,0.29475636,84226.0,84225.0,0.23171901]
[1742632733907,0.41352966,84226.0,84225.0,0.23171901]
[1742632734211,0.29475636,84226.0,84225.0,0.23171901]
[1742632734817,0.41352966,84226.0,84225.0,0.23171901]
[1742632737016,0.41352966,84226.0,84225.0,0.2166147]
[1742632739420,0.29475636,84226.0,84225.0,0.2166147]
[1742632739725,0.41352966,84226.0,84225.0,0.2166147]
[1742632740325,0.29475636,84226.0,84225.0,0.2166147]
[1742632740621,0.41352966,84226.0,84225.0,0.2166147]
[1742632740812,0.51490349,84226.0,84225.0,0.2166147]
[1742632741010,0.39613019,84226.0,84225.0,0.2166147]
[1742632741210,0.39613019,84226.0,84225.0,0.23178904]
[1742632741421,0.51490349,84226.0,84225.0,0.23178904]
[1742632741622,0.39613019,84226.0,84225.0,0.23178904]
[1742632742416,0.36373019,84226.0,84225.0,0.23178904]
[1742632742624,0.33323019,84226.0,84225.0,0.23178904]
[1742632753228,0.22978449,84226.0,84225.0,0.23178904]
[1742632753926,0.26298449,84226.0,84225.0,0.23178904]
[1742632754123,0.29358449,84226.0,84225.0,0.23178904]
[1742632762636,0.14425561,84226.0,84225.0,0.23178904]
[1742632762842,0.00089817,84226.0,84225.0,0.23178904]
[1742632763335,0.00089817,84226.0,84225.0,0.25659644]
[1742632765839,0.00089817,84226.0,84225.0,0.23178904]
[1742632766140,0.21363315,84227.0,84226.0,0.1187733]
[1742632766334,0.21363315,84227.0,84226.0,0.3594133]
[1742632766542,0.150462,84234.0,84233.0,0.1187634]
[1742632766840,0.03246,84234.0,84233.0,0.1194034]
[1742632767032,0.20985603,84234.0,84233.0,0.1200034]
[1742632767232,0.32857364,84234.0,84233.0,0.1193634]
[1742632767435,0.32857364,84234.0,84233.0,0.20043774]
[1742632767632,0.15117761,84234.0,84233.0,0.20043774]
[1742632769243,0.00076,84234.0,84233.0,0.20043774]
[1742632770251,0.00076,84234.0,84233.0,0.21246493]
[1742632777841,0.00076,84234.0,84233.0,0.19729059]
[1742632778342,0.00076,84234.0,84233.0,0.45729059]
[1742632778747,0.00076,84234.0,84233.0,0.47263235]
[1742632780452,0.00076,84234.0,84233.0,0.45729059]
[1742632781350,0.00076,84234.0,84233.0,0.4726837]
[1742632781951,0.0642,84237.0,84236.0,0.1187592]
[1742632782148,0.06492,84237.0,84236.0,0.4801592]
[1742632782352,0.03282,84237.0,84236.0,0.4801592]
[1742632782549,0.00072,84237.0,84236.0,0.4801592]
[1742632782953,0.00072,84237.0,84236.0,0.49555231]
[1742632783651,0.00017817,84242.0,84241.0,0.1187521]
[1742632783852,0.00085817,84242.0,84241.0,0.47854521]
[1742632784060,0.00017817,84242.0,84241.0,0.50934521]
[1742632784355,0.00017817,84242.0,84241.0,0.53418964]
[1742632784655,0.00085817,84242.0,84241.0,0.53418964]
[1742632785159,0.00017817,84242.0,84241.0,0.53418964]
[1742632785854,0.00017817,84242.0,84241.0,0.89498964]
[1742632786052,0.00017817,84242.0,84241.0,0.87014521]
[1742632786650,0.00085817,84242.0,84241.0,0.87014521]
[1742632788449,0.00017817,84242.0,84241.0,0.87014521]
[1742632788859,0.0321,84247.0,84246.0,0.1187451]
[1742632789063,0.0321,84247.0,84246.0,0.3887451]
[1742632789562,0.0321,84247.0,84246.0,0.39761209]
[1742632790161,0.0321,84247.0,84246.0,0.39837209]
[1742632793465,0.1515236,84247.0,84246.0,0.39837209]
[1742632793660,0.1825236,84247.0,84246.0,0.39837209]
[1742632795159,0.1826036,84247.0,84246.0,0.39837209]
[1742632796365,0.1826036,84247.0,84246.0,0.41330977]
[1742632797159,0.06386,84247.0,84246.0,0.41330977]
[1742632797361,0.0631,84247.0,84246.0,0.44570977]
[1742632797561,0.1818436,84247.0,84246.0,0.44570977]
[1742632798453,0.1818436,84247.0,84246.0,0.47610977]
[1742632798965,0.0631,84247.0,84246.0,0.47610977]
[1742632801570,0.1818436,84247.0,84246.0,0.47610977]
[1742632803671,0.0631,84247.0,84246.0,0.46117209]
[1742632805071,0.1818436,84247.0,84246.0,0.46117209]
[1742632807274,0.0631,84247.0,84246.0,0.46117209]
[1742632808075,0.1818436,84247.0,84246.0,0.46117209]
[1742632810476,0.1825236,84247.0,84246.0,0.57497209]
[1742632811774,0.06378,84247.0,84246.0,0.57497209]
[1742632811980,0.0631,84247.0,84246.0,0.57497209]
[1742632812481,0.06386,84247.0,84246.0,0.57497209]
[1742632812972,0.1826036,84247.0,84246.0,0.57497209]
[1742632813380,0.0631,84247.0,84246.0,0.57497209]
[1742632813766,0.06378,84247.0,84246.0,0.60677209]
[1742632813970,0.1825236,84247.0,84246.0,0.60677209]
[1742632815682,0.06378,84247.0,84246.0,0.60677209]
[1742632815876,0.0631,84247.0,84246.0,0.60677209]
[1742632816972,0.1818436,84247.0,84246.0,0.60677209]
[1742632818482,0.1825636,84247.0,84246.0,0.60677209]
[1742632821786,0.06382,84247.0,84246.0,0.60677209]
[1742632821985,0.06382,84247.0,84246.0,0.49297209]
[1742632822174,0.1825636,84247.0,84246.0,0.60661209]
[1742632822685,0.06382,84247.0,84246.0,0.60661209]
[1742632822885,0.0631,84247.0,84246.0,0.60661209]
[1742632823487,0.06382,84247.0,84246.0,0.60661209]
[1742632824188,0.1825636,84247.0,84246.0,0.60661209]
[1742632824387,0.06382,84247.0,84246.0,0.60661209]
[1742632828799,0.0321,84247.0,84246.0,0.60661209]
[1742632829293,0.03282,84247.0,84246.0,0.60661209]
[1742632829692,0.0321,84247.0,84246.0,0.60661209]
[1742632830689,0.0321,84247.0,84246.0,0.62160893]
[1742632833691,0.35537466,84264.0,84251.0,0.0593683]
[1742632833893,0.0304,84253.0,84252.0,0.3530442]
[1742632834090,0.1491352,84253.0,84252.0,0.7477242]
[1742632834292,0.1498152,84253.0,84252.0,0.76272104]
[1742632834494,0.1819152,84253.0,84252.0,0.76272104]
[1742632835491,0.1819152,84253.0,84252.0,0.7477242]
[1742632835697,0.06318,84253.0,84252.0,0.75979315]
[1742632835905,0.1812352,84253.0,84252.0,0.75979315]
[1742632836093,0.1819152,84253.0,84252.0,0.75979315]
[1742632837499,0.06318,84253.0,84252.0,0.75979315]
[1742632838004,0.0625,84253.0,84252.0,0.75979315]
[1742632838889,0.1812352,84253.0,84252.0,0.75979315]
[1742632839090,0.1812352,84253.0,84252.0,0.39899315]
[1742632839297,0.1819952,84253.0,84252.0,0.75979315]
[1742632839494,0.1812352,84253.0,84252.0,0.75979315]
[1742632840205,0.1812352,84253.0,84252.0,0.64105655]
[1742632840397,0.1819152,84253.0,84252.0,0.64105655]
[1742632843003,0.18183521,84253.0,84252.0,0.64105655]
[1742632844708,0.18183521,84253.0,84252.0,0.28025655]
[1742632844911,0.18183521,84253.0,84252.0,0.64105655]
[1742632846503,0.18183521,84253.0,84252.0,0.28025655]
[1742632846709,0.18183521,84253.0,84252.0,0.64105655]
[1742632854912,0.18183521,84253.0,84252.0,0.58168895]
[1742632855317,0.18183521,84253.0,84252.0,0.70042555]
[1742632855916,0.18183521,84253.0,84252.0,0.71536061]
[1742632856616,0.18183521,84253.0,84252.0,0.70042555]
[1742632856823,0.18183521,84253.0,84252.0,0.58168895]
[1742632857014,0.30052605,84253.0,84252.0,0.58168895]
[1742632857519,0.30052605,84253.0,84252.0,0.70042555]
[1742632858217,0.30052605,84253.0,84252.0,0.58168895]
[1742632858418,0.30052605,84253.0,84252.0,0.70042555]
[1742632859626,0.40881323,84253.0,84252.0,0.70042555]
[1742632860908,0.40881323,84253.0,84252.0,0.71538873]
[1742632863425,0.40881323,84253.0,84252.0,0.35458873]
[1742632864420,0.40881323,84253.0,84252.0,0.33962555]
[1742632867427,0.30052605,84253.0,84252.0,0.33962555]
[1742632871628,0.30052605,84253.0,84252.0,0.3547943]
[1742632872722,0.23802605,84253.0,84252.0,0.3547943]
[1742632872920,0.00017805,84255.0,84254.0,0.1187338]
[1742632873122,0.3196603,84274.0,84256.0,0.0593648]
[1742632873321,0.0627,84273.0,84264.0,0.09577825]
[1742632873622,0.1187123,84271.0,84270.0,0.1187098]
[1742632873819,0.1195523,84271.0,84270.0,0.1195498]
[1742632874025,0.29839537,84271.0,84270.0,0.1195498]
[1742632874330,0.17968307,84271.0,84270.0,0.13134525]
[1742632874832,0.29834855,84271.0,84270.0,0.13134525]
[1742632875231,0.41705835,84271.0,84270.0,0.1803498]
[1742632875430,0.44925835,84271.0,84270.0,0.1803498]
[1742632875733,0.33054855,84271.0,84270.0,0.19239773]
[1742632875928,0.41705835,84271.0,84270.0,0.19239773]
[1742632876545,0.29834855,84271.0,84270.0,0.19239773]
[1742632877031,0.40347352,84271.0,84270.0,0.19239773]
[1742632877836,0.10596497,84271.0,84270.0,0.19239773]
[1742632878027,0.10512497,84271.0,84270.0,0.19239773]
[1742632878535,0.10604497,84271.0,84270.0,0.19239773]
[1742632878725,0.10604497,84271.0,84270.0,0.20765101]
[1742632878926,0.10596497,84271.0,84270.0,0.20765101]
[1742632879120,0.10512497,84271.0,84270.0,0.20765101]
[1742632879525,0.10604497,84271.0,84270.0,0.20765101]
[1742632879832,0.00092,84271.0,84270.0,0.20765101]
[1742632880033,0.03168,84272.0,84271.0,0.1187098]
[1742632880240,0.00092,84272.0,84271.0,0.1195498]
[1742632880432,8e-05,84272.0,84271.0,0.1831498]
[1742632881124,0.00068001,84272.0,84271.0,0.1831498]
[1742632881321,8e-05,84272.0,84271.0,0.1831498]
[1742632881525,0.001,84272.0,84271.0,0.1831498]
[1742632881737,0.001,84272.0,84271.0,0.2968698]
[1742632882938,0.06228,84272.0,84271.0,0.2968698]
[1742632883130,0.06312,84272.0,84271.0,0.2968698]
[1742632884139,0.06228,84272.0,84271.0,0.2968698]
[1742632884339,0.06312,84272.0,84271.0,0.2968698]
[1742632884540,0.06228,84272.0,84271.0,0.2968698]
[1742632884742,0.06288001,84272.0,84271.0,0.2968698]
[1742632885539,0.06228,84272.0,84271.0,0.2968698]
[1742632886143,0.06312,84272.0,84271.0,0.2968698]
[1742632887143,0.00092,84272.0,84271.0,0.2968698]
[1742632887343,8e-05,84272.0,84271.0,0.2968698]
[1742632887535,0.00068001,84272.0,84271.0,0.2968698]
[1742632889434,0.03378001,84272.0,84271.0,0.2968698]
[1742632890328,0.03318,84272.0,84271.0,0.2968698]
[1742632890529,0.03406001,84272.0,84271.0,0.2968698]
[1742632891942,0.00096001,84272.0,84271.0,0.2968698]
[1742632892134,8e-05,84272.0,84271.0,0.2968698]
[1742632892330,0.00092,84272.0,84271.0,0.2968698]
[1742632892635,8e-05,84272.0,84271.0,0.2968698]
[1742632892836,0.00092,84272.0,84271.0,0.2968698]
[1742632895037,0.1196284,84272.0,84271.0,0.2968698]
[1742632895238,0.00092,84272.0,84271.0,0.17816]
[1742632895443,0.06338,84272.0,84271.0,0.2968698]
[1742632895643,0.06422,84272.0,84271.0,0.2968698]
[1742632896536,8e-05,84272.0,84271.0,0.2968698]
[1742632896937,0.00068001,84272.0,84271.0,0.2968698]
[1742632897146,8e-05,84272.0,84271.0,0.2968698]
[1742632897444,0.00092,84272.0,84271.0,0.2968698]
[1742632898337,8e-05,84272.0,84271.0,0.2968698]
[1742632898538,0.00092,84272.0,84271.0,0.2968698]
[1742632899143,0.03422,84272.0,84271.0,0.2968698]
[1742632900052,0.00092,84272.0,84271.0,0.2968698]
[1742632900351,0.00092,84272.0,84271.0,0.3295698]
[1742632900546,0.03292,84272.0,84271.0,0.3295698]
[1742632902045,0.03292,84272.0,84271.0,0.34470626]
[1742632902748,0.03208,84272.0,84271.0,0.34470626]
[1742632902954,0.033,84272.0,84271.0,0.34470626]
[1742632904456,0.001,84272.0,84271.0,0.34470626]
[1742632904751,8e-05,84272.0,84271.0,0.34470626]
[1742632904951,0.00096001,84272.0,84271.0,0.34470626]
[1742632906354,8e-05,84272.0,84271.0,0.34470626]
[1742632906855,0.00092,84272.0,84271.0,0.34470626]
[1742632908351,8e-05,84272.0,84271.0,0.34470626]
[1742632908853,8e-05,84277.0,84276.0,0.1187028]
[1742632909251,8e-05,84277.0,84276.0,0.4595028]
[1742632909450,8e-05,84277.0,84276.0,0.47463926]
[1742632909649,0.11887665,84279.0,84278.0,0.1187]
[1742632909853,0.11895665,84279.0,84278.0,0.23286]
[1742632910247,0.11895665,84279.0,84278.0,0.29616]
[1742632911161,0.00025805,84279.0,84278.0,0.29616]
[1742632911561,0.00025805,84279.0,84278.0,0.31170519]
[1742632911751,0.00025805,84279.0,84278.0,0.56170519]
[1742632911957,0.11895665,84279.0,84278.0,0.56170519]
[1742632912256,0.11895665,84279.0,84278.0,0.54616]
[1742632912658,0.11887665,84279.0,84278.0,0.54616]
[1742632913363,0.00017805,84279.0,84278.0,0.54616]
[1742632914061,0.11887665,84279.0,84278.0,0.54616]
[1742632914564,0.00105806,84279.0,84278.0,0.54704]
[1742632915358,0.03245806,84279.0,84278.0,0.54704]
[1742632915756,0.00105806,84279.0,84278.0,0.54704]
[1742632916160,0.00017805,84279.0,84278.0,0.56204775]
[1742632916365,8e-05,84281.0,84280.0,0.1186972]
[1742632916565,0.3608,84285.0,84284.0,0.1186915]
[1742632916758,0.36172,84285.0,84284.0,0.5136115]
[1742632916959,0.53997978,84285.0,84284.0,0.5136115]
[1742632917259,0.7773241,84285.0,84284.0,0.5136115]
[1742632917460,0.7773241,84285.0,84284.0,0.5770115]
[1742632917662,0.4165241,84285.0,84284.0,0.59201925]
[1742632917968,0.297834,84285.0,84284.0,0.59201925]
[1742632918170,0.4165241,84285.0,84284.0,0.59201925]
[1742632919363,0.4164441,84285.0,84284.0,0.59201925]
[1742632919564,0.41788411,84285.0,84284.0,0.59201925]
[1742632920163,0.18053979,84285.0,84284.0,0.59201925]
[1742632920669,0.29922989,84285.0,84284.0,0.59201925]
[1742632921170,0.36362989,84285.0,84284.0,0.59201925]
[1742632922073,0.24493979,84285.0,84284.0,0.59201925]
[1742632922372,0.18053979,84285.0,84284.0,0.59201925]
[1742632922563,0.17969979,84285.0,84284.0,0.59201925]
[1742632922762,0.18053979,84285.0,84284.0,0.59201925]
[1742632923465,0.17909978,84285.0,84284.0,0.59201925]
[1742632923971,0.18053979,84285.0,84284.0,0.59201925]
[1742632924775,0.24413979,84285.0,84284.0,0.59201925]
[1742632926958,0.24329979,84285.0,84284.0,0.59201925]
[1742632927163,0.2441798,84285.0,84284.0,0.59201925]
[1742632928464,0.24273979,84285.0,84284.0,0.59201925]
[1742632929364,0.2441798,84285.0,84284.0,0.59201925]
[1742632931768,0.2441798,84285.0,84284.0,0.5770115]
[1742632934774,0.24329979,84285.0,84284.0,0.5770115]
[1742632934971,0.2438998,84285.0,84284.0,0.5770115]
[1742632938676,0.2438998,84285.0,84284.0,0.59208019]
[1742632945478,0.3625899,84285.0,84284.0,0.59208019]
[1742632945684,0.3625899,84285.0,84284.0,0.31208019]
[1742632945884,0.2438998,84285.0,84284.0,0.31208019]
[1742632946683,0.3625899,84285.0,84284.0,0.31208019]
[1742632947877,0.3625899,84285.0,84284.0,0.2970115]
[1742632975696,0.2438998,84285.0,84284.0,0.2970115]
[1742632989122,0.3625899,84285.0,84284.0,0.1829315]
[1742632989326,0.48123567,84285.0,84284.0,0.1829315]
[1742632991523,0.36254557,84285.0,84284.0,0.1829315]
[1742632991921,0.48123567,84285.0,84284.0,0.1829315]
[1742633014142,0.48123567,84285.0,84284.0,1.1829315]
[1742633028474,0.29894557,84285.0,84284.0,1.1829315]
[1742633028667,0.0304,84292.0,84291.0,0.1186817]
[1742633028967,0.00104001,84292.0,84291.0,0.1790625]
[1742633029168,0.17910924,84292.0,84291.0,0.2751625]
[1742633029371,0.3608,84320.0,84291.0,0.38877897]
[1742633029676,0.10008,84300.0,84299.0,0.1186704]
[1742633029868,0.10008,84300.0,84299.0,0.5115504]
[1742633030067,0.27895438,84300.0,84299.0,0.5129504]
[1742633030264,0.28031438,84300.0,84299.0,0.5129504]
[1742633030469,0.39893904,84300.0,84299.0,0.5778504]
[1742633031466,8e-05,84302.0,84301.0,0.1186676]
[1742633031669,0.2411827,84312.0,84311.0,0.1186535]
[1742633031968,0.2411827,84312.0,84311.0,0.4812535]
[1742633032170,0.42029733,84312.0,84311.0,0.4812535]
[1742633032473,0.53890511,84312.0,84311.0,0.4812535]
[1742633033465,0.53890511,84312.0,84311.0,0.49298439]
[1742633034171,0.42024881,84312.0,84311.0,0.49298439]
[1742633041775,0.42024881,84312.0,84311.0,1.13218439]
[1742633042078,0.42024881,84312.0,84311.0,1.49298439]
[1742633043775,0.42024881,84312.0,84311.0,1.13218439]
[1742633044289,0.42024881,84312.0,84311.0,1.49298439]
[1742633045372,0.42024881,84312.0,84311.0,1.4812535]
[1742633046378,0.42024881,84312.0,84311.0,1.49284267]
[1742633049479,0.42024881,84312.0,84311.0,1.4812535]
[1742633049681,0.42024881,84312.0,84311.0,1.0018]
[1742633050088,0.42024881,84312.0,84311.0,1.0654]
[1742633050493,0.42024881,84312.0,84311.0,1.1840535]
[1742633050684,0.42024881,84312.0,84311.0,1.0654]
[1742633051089,0.45134881,84312.0,84311.0,1.0654]
[1742633051290,0.45134881,84312.0,84311.0,1.0018]
[1742633055490,0.55293658,84312.0,84311.0,1.0018]
[1742633060199,0.91373658,84312.0,84311.0,1.0018]
[1742633060398,0.93599201,84312.0,84311.0,1.0018]
[1742633060601,0.95828871,84312.0,84311.0,1.0018]
[1742633066894,0.59748871,84312.0,84311.0,1.0018]
[1742633067102,0.93603328,84312.0,84311.0,1.0018]
[1742633067301,0.93599201,84312.0,84311.0,1.0018]
[1742633068401,0.57519201,84312.0,84311.0,1.0018]
[1742633068601,0.91373658,84312.0,84311.0,1.0018]
[1742633068796,0.93599201,84312.0,84311.0,1.0018]
[1742633070400,0.57519201,84312.0,84311.0,1.0018]
[1742633070602,0.91373658,84312.0,84311.0,1.0018]
[1742633070908,0.93599201,84312.0,84311.0,1.0018]
[1742633071292,0.90489201,84312.0,84311.0,1.0018]
[1742633074216,0.56713691,84312.0,84311.0,1.0018]
[1742633074417,0.90568148,84312.0,84311.0,1.0018]
[1742633074613,0.92793691,84312.0,84311.0,1.0018]
[1742633078022,1.04732466,84312.0,84311.0,1.0018]
[1742633078424,0.68652466,84312.0,84311.0,1.0018]
[1742633078724,1.02506923,84312.0,84311.0,1.0018]
[1742633078922,1.04732466,84312.0,84311.0,1.0018]
[1742633082523,1.00202433,84312.0,84311.0,1.0018]
[1742633084129,0.78104881,84312.0,84311.0,1.0018]
[1742633084332,0.80459366,84312.0,84311.0,1.0018]
[1742633084628,0.8278047,84312.0,84311.0,1.0018]
[1742633085424,0.80459366,84312.0,84311.0,1.0018]
[1742633085623,0.1186859,84288.0,84287.0,0.3608]
[1742633085923,0.1186859,84288.0,84287.0,0.4918784]
[1742633086122,0.1195659,84288.0,84287.0,0.4918784]
[1742633086325,0.23732745,84288.0,84287.0,0.4918784]
[1742633086530,0.23812745,84288.0,84287.0,0.4918784]
[1742633086732,0.23812745,84288.0,84287.0,0.4802873]
[1742633086932,0.23812745,84288.0,84287.0,0.5124873]
[1742633088833,0.23812745,84288.0,84287.0,0.5788873]
[1742633095434,0.23812745,84288.0,84287.0,0.2180873]
[1742633095640,0.23812745,84288.0,84287.0,0.5788873]
[1742633106843,0.23812745,84288.0,84287.0,0.2180873]
[1742633107046,0.23812745,84288.0,84287.0,0.5788873]
[1742633108653,0.26912745,84288.0,84287.0,0.5788873]
[1742633109644,0.29922745,84288.0,84287.0,0.5788873]
[1742633116554,0.31079387,84288.0,84287.0,0.5788873]
[1742633116767,0.29922745,84288.0,84287.0,0.5788873]
[1742633118951,0.29922745,84288.0,84287.0,0.0672]
[1742633119156,0.29922745,84288.0,84287.0,0.0664]
[1742633119847,0.29922745,84288.0,84287.0,0.0672]
[1742633120047,0.29922745,84288.0,84287.0,0.0664]
[1742633120247,0.29922745,84288.0,84287.0,0.0672]
[1742633121661,0.29922745,84288.0,84287.0,0.1858873]
[1742633123559,0.29922745,84288.0,84287.0,0.2185873]
[1742633159383,0.29922745,84288.0,84287.0,0.0672]
[1742633159584,0.29922745,84288.0,84287.0,0.0664]
[1742633159890,0.1186957,84281.0,84280.0,8e-05]
[1742633160099,0.1186957,84281.0,84280.0,0.00088]
[1742633160282,0.29684301,84281.0,84280.0,0.00088]
[1742633160489,0.24234731,84281.0,84278.0,8e-05]
[1742633160688,0.1186986,84279.0,84278.0,0.00068]
[1742633160884,0.12848564,84279.0,84278.0,0.00068]
[1742633161084,0.12848564,84279.0,84278.0,0.0006]
[1742633161085,0.36961912,84279.0,84278.0,0.0006]
[1742633161486,0.48827052,84279.0,84278.0,0.0006]
[1742633161685,0.48827052,84279.0,84276.0,8e-05]
[1742633161686,0.1187014,84277.0,84276.0,8e-05]
[1742633161985,0.11930141,84277.0,84276.0,0.00068]
[1742633162296,0.29753495,84277.0,84276.0,0.00068]
[1742633162597,0.41618917,84277.0,84276.0,0.00068]
[1742633163491,0.41618917,84277.0,84276.0,8e-05]
[1742633163797,0.77698917,84277.0,84276.0,8e-05]
[1742633169495,0.77698917,84277.0,84276.0,0.06258]
[1742633171003,0.89018917,84277.0,84276.0,0.06258]
[1742633171198,0.95268917,84277.0,84276.0,0.06258]
[1742633181602,0.59188917,84277.0,84276.0,0.06258]
[1742633181797,0.95268917,84277.0,84276.0,0.06258]
[1742633188098,0.95268917,84277.0,84276.0,8e-05]
[1742633188504,0.95268917,84277.0,84273.0,0.0608]
[1742633188505,0.1187056,84274.0,84273.0,0.0608]
[1742633188702,0.11930561,84274.0,84273.0,0.0608]
[1742633188897,0.29806671,84274.0,84273.0,0.0608]
[1742633189302,0.47882374,84274.0,84273.0,0.0608]
[1742633191311,0.49093925,84274.0,84273.0,0.0608]
[1742633198709,0.47882374,84274.0,84273.0,0.0608]
[1742633214629,0.83962374,84274.0,84273.0,0.0608]
[1742633240663,0.47882374,84274.0,84273.0,0.0608]
[1742633240853,0.83962374,84274.0,84273.0,0.0608]
[1742633244059,0.95258374,84274.0,84273.0,0.0608]
[1742633244259,1.09368399,84274.0,84273.0,0.0608]
[1742633244461,0.73288399,84274.0,84273.0,0.0608]